bitfinex/quotes_ETHUSD_20260305
["timestamp","ask_amount","ask_price","bid_price","bid_amount"]
[1772670631166,0.001,2126.5,2126.3,0.45464055]
[1772670632155,0.001,2126.5,2126.4,1.63033656]
[1772670632469,0.001,2126.5,2126.4,0.45464055]
[1772670632686,0.001,2126.5,2126.2,1.17577553]
[1772670632845,0.001,2126.5,2126.0,1.128]
[1772670633047,0.001,2126.5,2126.1,0.45464055]
[1772670633749,0.001,2126.5,2126.2,0.45464055]
[1772670634255,0.001,2126.5,2126.4,1.17569601]
[1772670634460,0.001,2126.5,2126.4,1.63033656]
[1772670634978,1.17529207,2127.2,2126.4,1.63033656]
[1772670635771,1.17529207,2127.2,2126.5,0.45464055]
[1772670636079,1.17523808,2127.3,2126.5,0.45464055]
[1772670636276,1.17523808,2127.3,2126.6,1.17558544]
[1772670638397,1.17523808,2127.3,2126.6,1.63022599]
[1772670638880,1.65588403,2127.3,2126.6,1.17558544]
[1772670639179,0.48064595,2127.2,2126.6,1.17558544]
[1772670640287,0.48064595,2127.1,2126.4,4.70234176]
[1772670640784,0.48064595,2127.1,2125.8,4.70398228]
[1772670640785,0.48064595,2127.1,2125.8,0.45464055]
[1772670640995,0.48064595,2127.1,2125.9,0.631]
[1772670641284,0.48064595,2126.7,2125.6,1.131]
[1772670641853,0.48064595,2126.7,2125.5,1.38023214]
[1772670642071,0.48064595,2126.6,2125.5,1.38023214]
[1772670642283,0.48064595,2126.4,2125.7,1.17608317]
[1772670642978,0.48064595,2126.4,2125.6,2.30609929]
[1772670643159,0.48064595,2126.4,2125.7,1.131]
[1772670643961,0.48064595,2126.7,2125.7,1.58564055]
[1772670644180,0.48064595,2126.7,2125.8,0.45464055]
[1772670644382,0.48064595,2126.7,2125.9,1.17597252]
[1772670644569,1.17548015,2126.8,2125.9,1.63061307]
[1772670645465,1.6561261,2126.8,2125.9,1.63061307]
[1772670647501,0.48064595,2126.7,2126.0,1.132]
[1772670647793,0.48064595,2126.7,2126.0,0.632]
[1772670648293,0.48064595,2126.7,2126.1,0.0011]
[1772670648789,0.03426705,2126.6,2126.1,0.0011]
[1772670649291,1.17564072,2126.5,2126.1,0.0011]
[1772670649588,1.17662463,2126.6,2126.1,0.0011]
[1772670650177,0.001,2126.6,2126.1,0.0011]
[1772670650699,0.001,2126.6,2126.1,0.48446647]
[1772670650883,1.17659825,2126.6,2126.1,0.48446647]
[1772670651121,1.17659825,2126.6,2126.1,0.0011]
[1772670651394,0.001,2126.6,2126.1,0.0011]
[1772670652303,0.03426705,2126.6,2126.1,0.0011]
[1772670652707,0.03426705,2126.6,2125.6,0.0011]
[1772670652890,2.79561936,2126.5,2125.7,0.48391647]
[1772670653225,0.001,2126.6,2125.7,0.48391647]
[1772670653499,1.17658544,2126.6,2125.9,0.48391647]
[1772670655012,1.20875249,2126.6,2125.8,1.17602784]
[1772670655300,2.82984406,2126.5,2125.6,1.66114145]
[1772670655464,1.2078415,2126.5,2125.6,1.66114145]
[1772670655878,0.03216705,2126.4,2125.6,0.0011]
[1772670656382,0.03216705,2126.4,2125.6,1.17722124]
[1772670656875,0.03216705,2126.4,2125.6,1.66113771]
[1772670657600,1.1757513,2126.3,2125.6,0.48501647]
[1772670657979,1.1757513,2126.3,2125.6,1.66115132]
[1772670658771,1.17566783,2126.5,2125.7,0.48391647]
[1772670659373,1.176628,2126.6,2125.7,0.48391647]
[1772670659572,1.176628,2126.6,2125.8,1.65994431]
[1772670660298,2.79849649,2126.5,2125.8,1.61791647]
[1772670660501,0.03216705,2126.4,2125.6,2.31123639]
[1772670661205,1.176628,2126.6,2125.7,0.48391647]
[1772670661375,2.79841139,2126.5,2126.0,0.48501647]
[1772670661573,3.97509388,2126.5,2126.0,0.48501647]
[1772670661782,1.17668249,2126.5,2126.0,1.66091896]
[1772670662283,1.17668249,2126.5,2126.0,1.66092556]
[1772670662486,1.17668249,2126.5,2126.0,0.48501647]
[1772670663199,1.17668249,2126.5,2126.0,1.66093074]
[1772670663403,1.17668249,2126.5,2126.0,0.48501647]
[1772670664082,1.17668249,2126.5,2126.0,1.66092207]
[1772670664083,0.001,2126.5,2126.0,1.66092207]
[1772670664609,0.001,2126.5,2126.0,0.48501647]
[1772670666293,0.001,2126.5,2126.0,1.66093033]
[1772670666499,0.03316705,2126.5,2126.0,1.1351]
[1772670666872,0.03316705,2126.5,2126.0,0.0011]
[1772670667692,0.001,2126.5,2126.0,0.0011]
[1772670670511,2.8097108,2126.5,2126.0,0.0011]
[1772670671285,1.17569601,2126.4,2126.0,0.0011]
[1772670672392,0.001,2126.5,2126.0,0.48501647]
[1772670673306,0.001,2126.5,2126.1,1.1758619]
[1772670673511,0.001,2126.5,2126.2,0.48391647]
[1772670673707,0.001,2126.5,2126.3,1.135]
[1772670673886,0.001,2126.5,2126.1,1.135]
[1772670674324,0.001,2126.5,2126.1,1.1361]
[1772670674524,0.001,2126.3,2126.1,1.1361]
[1772670676027,0.001,2126.3,2126.2,0.04703226]
[1772670676997,0.001,2126.3,2126.1,2.31194919]
[1772670677425,0.001,2126.3,2126.1,1.1361]
[1772670677624,0.001,2126.3,2126.0,0.0011]
[1772670677827,0.03216705,2126.2,2125.5,1.1361]
[1772670678012,1.17591721,2126.0,2125.5,1.1361]
[1772670678897,1.17591721,2126.0,2125.5,2.31226963]
[1772670679824,1.17591721,2126.0,2125.5,1.17726963]
[1772670680325,1.17591721,2126.0,2125.5,0.0011]
[1772670680828,4.70366886,2126.1,2125.6,0.56235134]
[1772670681000,1.1767821,2126.3,2125.7,0.48781719]
[1772670681322,2.80462957,2126.2,2125.7,0.48781719]
[1772670681627,1.1767821,2126.3,2125.7,0.48781719]
[1772670681827,2.80453367,2126.2,2125.7,0.48781719]
[1772670682412,1.20894915,2126.3,2125.7,0.48781719]
[1772670682606,2.80383726,2126.2,2125.7,0.49001719]
[1772670682936,2.80383726,2126.2,2125.7,0.0022]
[1772670685226,0.03316705,2126.3,2125.7,0.49001719]
[1772670685227,0.001,2126.3,2125.7,0.49001719]
[1772670687933,0.001,2126.3,2125.8,1.17602784]
[1772670688145,0.001,2126.3,2125.9,0.48391647]
[1772670688662,0.001,2126.3,2126.1,0.48341647]
[1772670689139,0.001,2126.3,2126.2,0.48561647]
[1772670689644,0.001,2126.6,2126.4,0.48341647]
[1772670690051,0.001,2126.6,2126.4,1.65907898]
[1772670690629,1.1753105,2127.1,2126.5,0.48341647]
[1772670690832,4.7008606,2127.3,2126.5,0.48341647]
[1772670691052,4.7008606,2127.3,2126.7,0.48341647]
[1772670691621,1.1751986,2127.3,2126.7,0.48341647]
[1772670692654,1.1751986,2127.3,2126.7,1.65893125]
[1772670692956,1.1751986,2127.3,2126.8,0.0022]
[1772670693251,1.17618708,2127.4,2126.8,0.48561647]
[1772670694165,1.17618708,2127.4,2126.8,0.0022]
[1772670694166,0.03316705,2127.3,2126.8,0.0022]
[1772670694455,0.03316705,2127.3,2126.5,0.48341647]
[1772670694657,1.2062209,2127.2,2126.5,1.65905692]
[1772670694957,0.03096705,2127.0,2126.4,0.06964857]
[1772670695158,0.03096705,2126.8,2126.0,0.48451647]
[1772670696654,1.17553016,2126.7,2126.0,0.48451647]
[1772670697229,1.20649721,2126.7,2126.0,0.48451647]
[1772670698350,1.17553016,2126.7,2126.1,0.48451647]
[1772670699042,4.70212065,2126.9,2126.1,1.66034915]
[1772670699244,4.70212065,2126.9,2126.2,0.48451647]
[1772670700569,1.1753091,2127.1,2126.2,0.48451647]
[1772670700743,1.1753091,2127.1,2126.2,0.48561647]
[1772670701354,1.1753091,2127.1,2126.4,0.48451647]
[1772670703445,1.1753091,2127.1,2126.5,1.66015719]
[1772670703669,1.1753091,2127.1,2126.6,0.48451647]
[1772670704446,1.17629631,2127.2,2126.6,0.48451647]
[1772670705276,0.001,2127.4,2126.6,0.48451647]
[1772670705576,0.001,2127.6,2126.8,0.48401647]
[1772670705747,0.001,2127.6,2126.9,1.138]
[1772670706086,0.001,2127.6,2127.0,0.48401647]
[1772670706869,0.03296705,2127.6,2126.9,1.138]
[1772670707174,0.03296705,2127.6,2126.9,1.62201647]
[1772670707466,0.03296705,2127.6,2127.0,0.48401647]
[1772670707887,1.17508813,2127.5,2127.0,0.48401647]
[1772670708579,1.17607145,2127.6,2127.1,0.48401647]
[1772670709846,1.2080385,2127.6,2126.9,1.138]
[1772670710055,0.03196705,2127.5,2126.5,1.62201647]
[1772670710276,0.03196705,2127.5,2126.6,0.48401647]
[1772670711291,1.17607145,2127.6,2126.6,0.48401647]
[1772670711981,1.17607145,2127.6,2126.8,0.48401647]
[1772670711982,0.001,2127.6,2126.8,0.48401647]
[1772670713549,0.001,2127.6,2127.3,0.0011]
[1772670713746,0.001,2127.6,2127.3,0.48511647]
[1772670715982,0.03296705,2127.5,2127.3,0.0011]
[1772670717186,1.1760329,2127.6,2127.3,0.0011]
[1772670718182,0.001,2127.6,2127.3,0.0011]
[1772670718387,0.001,2127.6,2127.3,0.48461647]
[1772670721805,0.001,2127.6,2127.3,0.0011]
[1772670723575,0.03286705,2127.6,2127.0,0.0011]
[1772670724095,1.17508813,2127.5,2127.0,0.0011]
[1772670726365,1.17508813,2127.5,2127.2,0.0011]
[1772670726891,0.001,2127.4,2127.2,0.0011]
[1772670732301,1.1751986,2127.3,2127.2,0.0011]
[1772670734304,0.001,2127.4,2127.2,0.48516647]
[1772670735678,2.80150015,2127.5,2127.3,0.48356647]
[1772670735892,1.17606273,2127.6,2127.3,0.48356647]
[1772670736695,0.001,2127.6,2127.3,0.48356647]
[1772670737079,2.80263408,2127.6,2127.3,0.48356647]
[1772670737281,0.001,2127.6,2127.3,0.48356647]
[1772670737681,2.80259354,2127.6,2127.3,0.48356647]
[1772670737896,0.001,2127.6,2127.3,0.48356647]
[1772670738370,2.80227224,2127.6,2127.3,0.48356647]
[1772670738573,0.001,2127.6,2127.3,0.48356647]
[1772670738777,1.1760329,2127.6,2127.3,0.48356647]
[1772670740205,0.001,2127.4,2127.3,0.48356647]
[1772670740381,0.001,2127.4,2127.2,0.0011]
[1772670741403,0.001,2127.4,2127.2,0.48466647]
[1772670743626,0.001,2127.4,2127.2,0.0011]
[1772670744516,2.80319177,2127.4,2127.2,0.0011]
[1772670745911,1.1751986,2127.3,2127.2,0.0011]
[1772670746388,1.1751986,2127.3,2127.0,0.0011]
[1772670746791,1.1751986,2127.3,2127.0,0.48813657]
[1772670749118,0.001,2127.4,2127.0,0.48813657]
[1772670749317,0.13505,2127.2,2126.8,0.0011]
[1772670749486,2.93573737,2127.1,2126.8,0.0011]
[1772670749816,2.80068737,2127.0,2126.8,0.0011]
[1772670750723,2.80068737,2127.0,2126.6,0.48441742]
[1772670751429,1.17541962,2126.9,2126.6,0.48441742]
[1772670751797,1.31308877,2126.9,2126.3,0.48703657]
[1772670752932,1.31308877,2126.9,2126.8,0.0011]
[1772670753111,1.31308877,2126.9,2126.3,0.48703657]
[1772670753429,1.31308877,2126.9,2126.5,0.0011]
[1772670754402,1.17541962,2126.9,2126.5,0.48813657]
[1772670755934,1.1753091,2127.1,2126.5,0.48813657]
[1772670758440,1.1753091,2127.1,2126.6,0.48703657]
[1772670758810,4.70090563,2127.3,2126.6,0.48703657]
[1772670760238,1.1761986,2127.4,2126.7,0.48703657]
[1772670760438,2.79286906,2127.3,2126.7,0.48703657]
[1772670761212,2.93053821,2127.3,2126.7,0.48703657]
[1772670761521,0.13766915,2127.3,2126.7,0.48703657]
[1772670762439,1.17525385,2127.2,2126.7,0.48703657]
[1772670763451,4.70171173,2127.4,2126.8,0.48703657]
[1772670763452,0.001,2127.4,2126.8,0.48703657]
[1772670764157,0.001,2127.6,2126.8,0.48703657]
[1772670764541,0.001,2127.6,2126.9,1.17541962]
[1772670764711,0.001,2127.6,2127.0,0.48703657]
[1772670764915,0.13966915,2127.6,2126.7,0.48703657]
[1772670765355,0.13966915,2127.6,2126.7,0.48813657]
[1772670765528,0.001,2127.1,2126.7,0.48813657]
[1772670767055,0.13966915,2127.1,2126.7,0.0011]
[1772670767350,0.001,2127.1,2126.7,0.0011]
[1772670767558,0.001,2127.1,2126.7,0.48813657]
[1772670767739,0.001,2127.1,2126.8,0.48703657]
[1772670773465,0.13966915,2127.1,2126.7,0.0011]
[1772670773847,0.001,2127.1,2126.7,0.0011]
[1772670774163,0.001,2127.1,2126.8,0.48475127]
[1772670775950,0.001,2127.1,2126.7,0.0011]
[1772670776145,0.13966915,2127.1,2126.5,0.0011]
[1772670776344,0.13966915,2127.1,2126.5,0.48585127]
[1772670776572,0.13966915,2127.1,2126.6,0.48475127]
[1772670777263,0.001,2127.1,2126.6,0.48475127]
[1772670777772,0.001,2127.1,2126.7,0.48585127]
[1772670777971,0.001,2127.1,2126.7,1.66136792]
[1772670778143,0.001,2127.1,2126.8,0.48475127]
[1772670780372,0.001,2127.1,2126.9,0.48475127]
[1772670781762,0.001,2127.1,2126.7,1.61785127]
[1772670782152,1.1763091,2127.1,2126.7,1.61785127]
[1772670782468,1.1763091,2127.1,2126.7,0.48585127]
[1772670784372,1.67268113,2127.1,2126.7,0.0011]
[1772670786982,0.001,2127.1,2126.7,0.48585127]
[1772670788593,0.001,2127.1,2126.7,1.66134107]
[1772670788899,0.001,2127.1,2126.7,1.1765898]
[1772670789198,0.001,2127.1,2126.8,0.48475127]
[1772670789580,0.001,2127.1,2126.8,0.48585127]
[1772670790105,0.001,2126.9,2126.8,0.48585127]
[1772670790476,0.001,2126.9,2126.8,0.0011]
[1772670792101,0.49737203,2126.9,2126.1,0.0011]
[1772670792304,0.49737203,2126.9,2125.7,0.48585127]
[1772670792305,0.49637203,2126.7,2125.9,0.0011]
[1772670792607,0.49637203,2126.5,2125.9,0.0011]
[1772670792770,2.80122821,2126.4,2125.9,0.0011]
[1772670792970,1.67211304,2126.4,2125.9,0.0011]
[1772670793213,0.49637203,2126.3,2125.9,0.0011]
[1772670793413,0.49637203,2126.3,2125.7,0.0011]
[1772670793577,0.49637203,2126.3,2125.8,0.0011]
[1772670794225,0.49637203,2126.1,2125.6,0.0011]
[1772670795325,1.17591721,2126.0,2125.6,0.0022]
[1772670798012,0.49637203,2126.0,2125.6,0.0022]
[1772670798216,0.49637203,2126.0,2125.5,0.0011]
[1772670798421,0.49637203,2126.0,2125.5,0.0022]
[1772670798883,0.49637203,2126.0,2125.5,0.0011]
[1772670800307,0.46245462,2125.8,2125.5,0.0011]
[1772670801218,4.7034006,2126.2,2125.5,0.48220613]
[1772670801381,4.7034006,2126.2,2125.6,0.48220613]
[1772670802427,1.63825084,2126.3,2125.7,0.48110613]
[1772670802584,0.46245462,2126.3,2125.5,0.0011]
[1772670802789,0.46245462,2126.3,2125.6,0.48110613]
[1772670803091,1.1757337,2126.4,2125.6,0.48110613]
[1772670803287,2.43865686,2127.0,2125.6,0.48110613]
[1772670803288,0.001,2126.9,2125.6,0.48110613]
[1772670803909,0.001,2126.9,2125.8,0.48110613]
[1772670804115,0.001,2126.9,2125.9,0.48110613]
[1772670804418,0.001,2126.1,2126.0,1.65702334]
[1772670804716,0.001,2126.9,2126.1,0.48110613]
[1772670805017,0.001,2126.9,2126.3,0.48110613]
[1772670807117,0.001,2126.9,2126.4,1.17569601]
[1772670807417,0.001,2126.9,2126.4,1.66586683]
[1772670808119,0.001,2126.9,2126.5,0.49017082]
[1772670809925,0.001,2126.9,2126.3,1.17571316]
[1772670810227,0.47291591,2126.9,2126.3,1.17571316]
[1772670811223,0.001,2126.9,2126.3,1.66588398]
[1772670811726,0.47291591,2126.9,2125.8,4.70393732]
[1772670812025,0.47291591,2126.9,2125.9,0.49017082]
[1772670813421,1.17547489,2126.8,2126.0,1.66608803]
[1772670813828,1.17547489,2126.8,2126.1,0.49017082]
[1772670815998,1.6473908,2126.8,2126.1,1.66600678]
[1772670816822,1.6473908,2126.8,2126.2,0.49017082]
[1772670817328,0.001,2126.6,2126.2,0.49017082]
[1772670817500,0.47191591,2126.8,2126.1,1.17583596]
[1772670817501,1.17646079,2126.9,2126.3,0.49017082]
[1772670817700,0.001,2126.9,2126.3,0.49017082]
[1772670817902,0.001,2126.9,2126.4,1.17569601]
[1772670818201,0.001,2126.9,2126.5,0.49017082]
[1772670820007,0.001,2126.9,2126.6,1.17558544]
[1772670820907,0.47291591,2126.9,2126.1,1.133]
[1772670821092,0.47291591,2126.9,2125.7,2.3101778]
[1772670821295,0.47291591,2126.9,2125.7,2.80034862]
[1772670822309,0.47191591,2126.7,2125.7,2.80034862]
[1772670822835,0.001,2126.9,2125.8,0.49017082]
[1772670823144,1.1764217,2126.9,2125.8,0.49017082]
[1772670823423,1.1764217,2126.9,2125.8,1.62417082]
[1772670823603,1.1764217,2126.9,2125.7,1.1771778]
[1772670823805,1.1764217,2126.9,2125.7,1.17718165]
[1772670824007,1.1764217,2126.9,2125.7,0.0011]
[1772670824008,5.37932734,2126.8,2125.7,0.0011]
[1772670824311,1.17564072,2126.5,2125.7,0.0011]
[1772670824904,0.47191591,2126.4,2125.7,0.0011]
[1772670826425,1.1757513,2126.3,2125.7,0.0011]
[1772670827129,1.64766721,2126.3,2125.7,0.0011]
[1772670827307,1.1757513,2126.3,2125.7,0.49127082]
[1772670828526,4.70279748,2126.4,2125.7,1.66731139]
[1772670828702,4.70279748,2126.4,2125.9,0.0011]
[1772670829202,5.15336635,2126.4,2125.9,0.0011]
[1772670831714,0.45056887,2126.3,2125.9,0.0011]
[1772670832656,1.17662913,2126.6,2125.9,0.49379156]
[1772670833041,0.001,2126.6,2126.0,1.17591721]
[1772670833345,0.001,2126.6,2126.0,1.66860877]
[1772670834053,0.001,2126.6,2126.1,0.49269156]
[1772670834854,0.001,2126.6,2126.0,1.17591721]
[1772670835638,0.001,2126.6,2126.0,1.66860877]
[1772670839762,0.45156887,2126.6,2126.0,1.66860877]
[1772670840133,0.45156887,2126.6,2126.0,1.17591721]
[1772670840335,0.45156887,2126.6,2126.1,0.49269156]
[1772670841737,0.45156887,2126.6,2126.1,0.49379156]
[1772670841738,1.17564072,2126.5,2126.1,0.49379156]
[1772670842034,0.001,2126.4,2126.1,0.49379156]
[1772670842361,0.001,2126.6,2126.2,0.49269156]
[1772670843030,0.45056887,2126.5,2126.1,0.0011]
[1772670843659,0.45056887,2126.5,2125.9,0.0011]
[1772670844149,0.45056887,2126.3,2125.9,0.0011]
[1772670844456,1.17661487,2126.6,2125.9,0.49379156]
[1772670844641,0.45056887,2126.5,2125.9,0.0011]
[1772670845869,0.45056887,2126.5,2125.9,0.49379156]
[1772670846463,1.17569601,2126.4,2125.9,1.66973327]
[1772670848066,1.62625274,2126.5,2125.9,1.66973327]
[1772670848371,1.17661406,2126.6,2126.0,0.49269156]
[1772670848580,1.17661406,2126.6,2126.2,0.49269156]
[1772670848738,1.17661406,2126.6,2126.1,1.1758619]
[1772670850239,2.8053007,2126.5,2126.1,1.1758619]
[1772670850953,3.98095377,2126.5,2126.0,1.6685646]
[1772670851269,1.17565307,2126.5,2126.0,2.8035646]
[1772670851767,0.45056887,2126.4,2125.9,1.17706873]
[1772670851969,0.45056887,2126.4,2125.9,2.31206873]
[1772670852149,1.17565307,2126.5,2126.0,0.49269156]
[1772670853071,1.17565307,2126.5,2126.0,1.66860396]
[1772670853252,0.001,2126.6,2126.1,0.49269156]
[1772670854054,0.001,2126.6,2126.1,0.49379156]
[1772670854252,0.001,2126.3,2126.1,0.49379156]
[1772670854446,0.001,2126.9,2126.3,0.49269156]
[1772670854646,0.001,2126.9,2126.5,0.49269156]
[1772670854944,0.001,2126.9,2126.7,0.49269156]
[1772670855552,0.001,2127.1,2126.7,0.49269156]
[1772670857044,0.001,2127.1,2126.8,1.17547489]
[1772670857251,0.45156887,2127.1,2126.5,1.17564072]
[1772670858177,0.45156887,2127.1,2126.5,1.66833228]
[1772670859759,1.17536436,2127.0,2126.5,1.66833228]
[1772670860283,0.45156887,2127.1,2126.5,1.17564072]
[1772670860583,0.45156887,2127.1,2126.6,0.47119179]
[1772670860953,1.62687967,2127.1,2126.6,0.47119179]
[1772670861986,0.001,2127.1,2126.7,0.47119179]
[1772670864281,0.001,2127.2,2126.7,0.47119179]
[1772670865687,0.48893437,2127.2,2126.3,0.47119179]
[1772670865889,0.48893437,2127.2,2126.2,1.139]
[1772670866073,0.48893437,2127.2,2126.2,1.61019179]
[1772670866275,0.49482005,2127.0,2126.7,0.0011]
[1772670866792,0.49582005,2126.9,2126.7,0.0011]
[1772670868272,1.67029494,2126.8,2126.7,0.0011]
[1772670869764,1.17547489,2126.8,2126.7,0.0011]
[1772670873482,0.49582005,2126.9,2126.7,0.0011]
[1772670874168,0.001,2126.9,2126.7,0.0011]
[1772670875599,1.17641962,2126.9,2126.7,0.0011]
[1772670877604,0.001,2126.9,2126.7,0.0011]
[1772670877809,0.001,2127.2,2126.8,0.39002832]
[1772670878021,0.001,2127.6,2126.9,0.39002832]
[1772670878802,0.002,2127.6,2126.9,0.39112832]
[1772670879402,0.001,2127.6,2126.9,0.39112832]
[1772670879606,0.001,2127.6,2127.1,0.39002832]
[1772670879906,0.001,2127.6,2127.0,1.17536436]
[1772670881184,0.002,2127.6,2127.0,1.17536436]
[1772670881417,0.502,2127.6,2127.1,1.14]
[1772670881924,0.5,2127.5,2126.9,0.0011]
[1772670882210,0.5,2127.5,2126.9,1.1411]
[1772670884330,1.67508859,2127.5,2126.9,1.1421]
[1772670885094,0.5,2127.5,2126.9,1.1421]
[1772670885518,1.67509354,2127.5,2126.9,1.1421]
[1772670885810,0.5,2127.4,2126.9,0.0011]
[1772670886014,0.501,2127.4,2126.9,0.0011]
[1772670886687,0.5,2127.3,2126.9,1.17651962]
[1772670888018,0.001,2127.4,2126.9,1.17651962]
[1772670888785,0.501,2127.4,2126.9,1.17651962]
[1772670889015,0.501,2127.4,2126.9,2.31751962]
[1772670889190,0.501,2127.4,2126.9,1.17651962]
[1772670890898,0.5,2127.3,2126.9,1.17651962]
[1772670891916,0.5,2127.3,2127.1,0.0011]
[1772670892417,0.001,2127.2,2127.1,0.0011]
[1772670893323,0.49945,2127.0,2126.7,0.0011]
[1772670893491,0.49945,2127.0,2126.7,1.17662889]
[1772670893690,0.49945,2127.0,2126.7,0.0011]
[1772670895919,0.001,2127.1,2126.8,0.0011]
[1772670896119,0.49945,2127.5,2126.9,1.142]
[1772670896326,0.001,2127.4,2127.0,0.0011]
[1772670896522,0.001,2127.4,2127.0,0.001]
[1772670896914,0.50045,2127.4,2127.0,0.001]
[1772670898195,0.50045,2127.4,2127.0,1.17636436]
[1772670899717,0.001,2127.4,2127.0,1.17746436]
[1772670900402,0.001,2127.6,2127.1,0.0011]
[1772670900620,0.001,2127.5,2127.1,0.0011]
[1772670900817,0.001,2127.5,2127.2,0.001]
[1772670901301,0.001,2127.5,2127.2,0.0021]
[1772670901629,0.50045,2127.6,2127.2,0.001]
[1772670901830,0.50145,2127.6,2127.2,0.001]
[1772670903421,0.49945,2127.5,2127.2,0.001]
[1772670903615,0.49945,2127.5,2126.9,2.31937642]
[1772670903813,0.49945,2127.3,2127.0,0.001]
[1772670904217,0.50045,2127.2,2126.8,2.31943088]
[1772670904528,0.49945,2127.2,2126.9,0.001]
[1772670905412,0.49945,2127.2,2127.1,0.0011]
[1772670905728,0.001,2127.2,2127.1,0.0011]
[1772670906112,0.002,2127.2,2127.1,0.0011]
[1772670907027,0.001,2127.6,2127.2,0.0011]
[1772670907326,0.001,2127.6,2127.2,0.001]
[1772670907510,0.50045,2127.6,2127.2,0.001]
[1772670908336,0.50045,2127.6,2127.1,0.0011]
[1772670908633,0.50045,2127.6,2127.2,0.001]
[1772670910636,0.001,2127.6,2127.2,0.001]
[1772670910839,0.49945,2127.5,2127.1,0.0011]
[1772670911138,0.49945,2127.5,2127.1,0.0021]
[1772670911543,0.001,2127.6,2127.1,0.0021]
[1772670911544,0.001,2127.6,2127.1,0.0032]
[1772670911733,1.17603324,2127.6,2127.2,1.146]
[1772670911927,1.67548324,2127.6,2127.2,1.146]
[1772670912337,0.50045,2127.6,2127.2,1.146]
[1772670912867,0.49945,2126.6,2125.9,0.0011]
[1772670913028,0.49945,2126.4,2125.7,0.0011]
[1772670913350,0.49945,2126.3,2125.7,4.20896931]
[1772670913715,0.49945,2125.9,2125.7,7e-08]
[1772670914034,0.49945,2125.9,2125.4,1.17734371]
[1772670914337,0.49945,2125.9,2125.4,0.0011]
[1772670915429,0.49945,2125.9,2125.4,1.17733324]
[1772670915639,0.49945,2125.9,2125.4,0.0011]
[1772670915838,0.49945,2125.9,2125.4,1.17734822]
[1772670916315,1.17602784,2125.8,2125.4,0.0011]
[1772670916516,0.49945,2125.7,2125.4,0.0011]
[1772670918529,1.6755885,2125.6,2125.4,0.0011]
[1772670918848,1.6755885,2125.6,2125.5,0.0011]
[1772670919232,0.49945,2125.6,2125.5,0.0011]
[1772670920658,0.49945,2126.0,2125.5,0.0011]
[1772670920823,1.6754086,2126.0,2125.5,0.0011]
[1772670921353,0.49945,2125.9,2125.5,0.0011]
[1772670922331,1.1759586,2126.0,2125.5,0.0011]
[1772670922739,1.6754086,2126.0,2125.5,0.0011]
[1772670923132,0.49945,2125.9,2125.5,0.0011]
[1772670923334,0.4989,2125.3,2124.8,0.06995587]
[1772670923557,0.4989,2125.3,2123.3,1.41283348]
[1772670923558,0.4989,2125.3,2124.7,1.17661506]
[1772670924029,0.4989,2125.6,2124.8,1.1342]
[1772670924359,0.4989,2125.9,2124.9,0.0022]
[1772670924859,1.67492784,2125.8,2124.9,1.17872595]
[1772670925024,1.67492784,2125.8,2125.0,0.0022]
[1772670925230,0.4989,2125.8,2125.0,0.0022]
[1772670926359,0.4989,2126.1,2125.0,0.0022]
[1772670926537,0.4989,2126.1,2124.9,1.17652595]
[1772670926728,1.17591721,2126.0,2125.2,0.0022]
[1772670926928,0.4989,2125.9,2125.3,1.137]
[1772670927327,1.17590489,2126.1,2125.3,1.1392]
[1772670927527,1.67480489,2126.1,2125.3,1.1392]
[1772670927987,0.4989,2126.7,2125.4,0.0022]
[1772670928281,0.4989,2126.6,2125.4,0.0022]
[1772670929243,1.67454072,2126.5,2125.5,0.0022]
[1772670929553,0.4989,2126.4,2125.5,1.141]
[1772670930123,0.4989,2126.4,2125.6,0.0022]
[1772670931157,0.001,2125.9,2125.6,0.0022]
[1772670931334,0.001,2125.9,2125.6,1.1783385]
[1772670932063,0.4989,2126.4,2125.6,1.1783385]
[1772670932561,1.67459639,2126.4,2125.6,1.1783385]
[1772670932730,0.4989,2126.4,2125.6,1.1783385]
[1772670933145,1.67460128,2126.4,2125.6,1.1783385]
[1772670933552,0.4989,2126.4,2125.6,1.1783385]
[1772670934038,1.67459791,2126.4,2125.6,1.1783385]
[1772670935155,0.4989,2126.3,2125.7,1.146]
[1772670935537,0.4989,2126.3,2125.8,1.17602784]
[1772670935734,1.67458623,2126.5,2125.8,1.17602784]
[1772670935937,0.4989,2126.5,2125.8,1.17822784]
[1772670936142,1.67454337,2126.5,2125.8,1.17822784]
[1772670936342,1.67454469,2126.5,2125.8,1.17822784]
[1772670937060,0.4989,2126.5,2125.8,1.17822784]
[1772670939646,1.67454373,2126.5,2125.8,1.17822784]
[1772670939846,0.4989,2126.4,2125.8,1.17602784]
[1772670940547,0.4989,2126.4,2125.8,1.17822784]
[1772670941264,0.4989,2126.8,2126.0,1.17811721]
[1772670941437,0.4989,2126.8,2126.1,0.0022]
[1772670941639,0.4989,2126.8,2126.2,1.151]
[1772670943354,0.4989,2126.8,2126.3,1.1757513]
[1772670944141,0.001,2126.6,2126.3,1.1757513]
[1772670946082,0.001,2126.6,2126.3,1.1779513]
[1772670946248,0.4989,2127.0,2126.3,1.1779513]
[1772670946572,0.4994,2126.9,2126.3,1.1779513]
[1772670950282,0.4994,2126.9,2126.4,0.0012]
[1772670950667,0.5004,2127.1,2126.4,0.0012]
[1772670951374,0.001,2127.1,2126.4,0.0012]
[1772670952807,0.5004,2127.1,2126.3,1.1757513]
[1772670952960,0.5004,2127.1,2126.5,1.157]
[1772670953509,0.4994,2127.0,2126.2,4.70420522]
[1772670953655,0.4994,2127.0,2126.2,1.1758066]
[1772670953859,0.4994,2126.8,2126.1,1.157]
[1772670954569,0.4994,2126.8,2125.8,1.17828688]
[1772670954762,0.4994,2126.8,2125.9,1.1592]
[1772670954962,0.4994,2126.8,2125.9,1.25650219]
[1772670955665,0.4994,2126.8,2126.0,1.17591721]
[1772670955862,1.17548032,2126.8,2126.0,1.17711721]
[1772670956057,0.4994,2126.7,2126.0,1.17711721]
[1772670956571,0.4994,2126.7,2126.5,0.0011]
[1772670957792,0.4994,2126.7,2126.5,1.17674072]